bitfinex-derivatives/quotes_ETHF0:USTF0_20250912
["timestamp","ask_amount","ask_price","bid_price","bid_amount"]
[1757678849399,0.7114,4511.3,4511.2,0.4292]
[1757678850901,0.7114,4511.3,4511.2,0.7443]
[1757678851404,0.7114,4511.3,4511.2,0.5213]
[1757678851702,0.7114,4511.3,4511.2,0.2062]
[1757678853597,0.7114,4511.3,4510.8,3.2078]
[1757678853802,0.7114,4510.7,4510.6,0.2062]
[1757678854005,0.7114,4510.7,4510.6,0.4292]
[1757678854198,0.7114,4510.7,4510.3,3.5229]
[1757678854498,0.8299,4510.5,4510.4,0.4302]
[1757678854896,0.8299,4510.5,4510.4,0.224]
[1757678855095,0.5251,4510.5,4510.4,0.224]
[1757678855401,0.8299,4510.5,4510.4,0.224]
[1757678855796,0.8299,4510.5,4510.4,0.223]
[1757678856197,0.8299,4510.5,4510.4,0.4292]
[1757678857299,0.3048,4510.4,4509.9,0.3151]
[1757678857498,0.3048,4510.4,4510.1,0.4292]
[1757678857703,0.7114,4510.2,4510.1,0.7443]
[1757678858204,0.7114,4510.2,4510.1,0.9458]
[1757678860701,0.7114,4510.2,4510.1,0.2062]
[1757678861500,0.7114,4509.9,4509.8,0.5213]
[1757678862203,0.7114,4509.9,4509.8,0.2062]
[1757678862405,0.7114,4509.9,4509.7,0.223]
[1757678862899,0.3048,4509.8,4509.3,3.2078]
[1757678863104,0.7114,4509.4,4509.3,3.7291]
[1757678864199,0.7114,4509.4,4509.3,0.2062]
[1757678864604,0.4066,4509.4,4509.0,0.5391]
[1757678864800,0.7114,4509.1,4509.0,0.7228]
[1757678865109,0.7114,4509.1,4509.0,0.9468]
[1757678865500,0.7114,4509.1,4509.0,0.2062]
[1757678865700,0.7114,4508.9,4508.8,3.638]
[1757678865897,0.7114,4508.9,4508.8,4.1546]
[1757678866711,0.2075,4509.4,4509.3,0.4077]
[1757678866901,0.7114,4509.4,4509.3,0.7228]
[1757678869607,0.7114,4509.4,4509.3,0.2062]
[1757678869806,0.7114,4509.4,4509.3,0.7228]
[1757678870512,0.5123,4509.4,4509.3,0.7228]
[1757678872008,0.7114,4509.4,4509.3,0.2062]
[1757678872211,0.7114,4509.4,4509.0,0.5391]
[1757678872399,0.7114,4509.1,4508.8,3.2078]
[1757678872605,0.8299,4509.0,4508.9,0.2062]
[1757678872807,0.2075,4509.1,4509.0,0.7228]
[1757678873011,0.7114,4509.1,4509.0,0.7228]
[1757678874806,0.7114,4508.9,4508.8,3.414]
[1757678875012,0.7114,4508.9,4508.5,0.224]
[1757678875208,0.3048,4508.8,4508.7,0.2062]
[1757678875406,0.7114,4508.8,4508.7,0.2062]
[1757678875914,0.3048,4508.7,4508.3,3.2078]
[1757678876110,0.7114,4508.4,4508.3,3.9306]
[1757678876412,0.1185,4509.0,4508.3,3.9306]
[1757678876413,0.7114,4508.9,4508.8,0.7228]
[1757678878413,0.7114,4508.9,4508.8,0.2062]
[1757678878614,0.8458,4508.5,4508.4,0.4887]
[1757678878813,0.8458,4508.5,4508.4,0.6966]
[1757678879120,0.7212,4508.5,4508.4,0.6966]
[1757678879420,0.8458,4508.5,4508.4,0.6966]
[1757678879913,0.8458,4508.5,4508.4,0.1995]
[1757678881214,0.311,4508.4,4507.8,3.497]
[1757678881405,0.7212,4507.9,4507.8,3.9044]
[1757678881608,0.7212,4507.9,4507.8,4.1284]
[1757678881812,0.517,4507.9,4507.8,4.1284]
[1757678882005,0.206,4507.9,4507.8,4.1284]
[1757678882417,0.1246,4508.5,4507.8,4.23839]
[1757678882616,0.7212,4508.4,4508.3,0.4887]
[1757678883022,0.7212,4508.4,4508.3,0.6966]
[1757678883215,0.7212,4508.4,4508.3,0.4074]
[1757678883518,0.7212,4508.4,4508.3,0.1995]
[1757678884319,0.7212,4508.4,4508.3,0.4887]
[1757678884617,0.7212,4508.4,4508.3,0.6966]
[1757678884806,0.7212,4508.4,4507.8,3.2078]
[1757678885006,0.7212,4508.4,4506.5,3.4073]
[1757678885007,0.4102,4506.6,4506.5,3.4073]
[1757678885211,3.5188,4507.1,4507.0,0.4074]
[1757678885417,0.311,4507.4,4507.0,0.4074]
[1757678885613,0.8458,4507.5,4507.4,0.1995]
[1757678885813,0.311,4507.5,4507.4,0.4074]
[1757678886218,0.311,4507.9,4507.4,0.4074]
[1757678886418,0.311,4507.9,4507.4,0.6354]
[1757678886715,0.3526,4508.5,4507.4,0.6354]
[1757678887218,0.8458,4508.0,4507.9,0.1995]
[1757678887413,0.1246,4509.0,4508.3,0.6966]
[1757678887414,0.311,4508.4,4508.3,0.6966]
[1757678887614,0.311,4508.4,4508.3,0.9246]
[1757678888320,0.517,4508.6,4508.5,0.6966]
[1757678888915,0.7212,4508.6,4508.5,0.6966]
[1757678889220,0.7212,4508.6,4508.5,0.1995]
[1757678889419,0.5348,4508.5,4507.8,0.2892]
[1757678889617,0.1246,4508.5,4507.8,0.6966]
[1757678889813,0.5348,4508.5,4508.4,0.1995]
[1757678890010,0.1246,4509.0,4508.4,0.4074]
[1757678890218,0.2725,4508.7,4508.6,0.6966]
[1757678890415,0.5835,4508.7,4508.6,0.6966]
[1757678890618,0.7212,4508.7,4508.6,0.4074]
[1757678891015,0.7212,4508.7,4508.6,0.1995]
[1757678893927,0.7212,4508.7,4508.6,0.4074]
[1757678894923,0.7212,4508.7,4508.6,0.6966]
[1757678895827,0.517,4508.7,4508.6,0.6966]
[1757678897729,0.311,4508.7,4508.6,0.6966]
[1757678897931,0.0665,4508.9,4508.8,0.4074]
[1757678898134,0.0665,4508.9,4508.8,4.1324]
[1757678898328,0.1246,4509.5,4508.8,4.24231]
[1757678898534,0.5348,4509.5,4508.8,3.4358]
[1757678898730,0.206,4508.3,4508.2,0.1995]
[1757678898937,0.7212,4508.3,4508.2,0.1995]
[1757678899131,0.517,4508.3,4508.2,0.6966]
[1757678899636,0.7212,4508.3,4508.2,0.4074]
[1757678899832,0.7212,4508.3,4508.2,0.6966]
[1757678900030,0.7212,4508.3,4508.2,0.4074]
[1757678900231,0.8458,4508.0,4507.9,0.1995]
[1757678900531,0.3306,4507.5,4507.4,3.6152]
[1757678900731,0.311,4507.5,4507.4,4.1324]
[1757678901134,0.1246,4508.0,4507.4,3.8432]
[1757678901335,0.7212,4507.9,4507.8,0.4074]
[1757678901527,0.7877,4507.9,4507.8,0.4074]
[1757678901927,0.1246,4507.5,4507.4,3.4073]
[1757678902129,0.8458,4507.0,4506.9,0.4074]
[1757678903128,0.8458,4507.0,4506.5,0.228]
[1757678903337,0.8458,4507.0,4506.4,3.2078]
[1757678903338,0.1246,4506.5,4506.4,3.2078]
[1757678903545,0.8458,4506.5,4506.4,3.4368]
[1757678903945,0.1246,4507.0,4506.4,3.4368]
[1757678903946,0.311,4506.9,4506.5,0.2892]
[1757678904148,0.7212,4506.9,4506.4,3.2078]
[1757678904342,0.8458,4506.5,4506.4,0.4074]
[1757678904538,0.311,4506.5,4506.4,0.6966]
[1757678904743,0.311,4506.9,4506.5,0.2892]
[1757678904949,0.7212,4506.9,4506.8,0.4074]
[1757678906243,0.7212,4506.9,4506.8,0.9256]
[1757678906636,0.517,4506.9,4506.8,4.1334]
[1757678907252,3.5033,4507.9,4507.8,0.6966]
[1757678907253,3.2743,4507.9,4507.8,0.6966]
[1757678907445,0.0665,4507.9,4507.8,1.3248]
[1757678907749,0.7212,4508.4,4508.3,0.6966]
[1757678908139,0.7168,4508.4,4508.3,0.4074]
[1757678908344,0.7168,4508.4,4508.3,0.6374]
[1757678908954,0.5163,4508.4,4508.3,0.9458]
[1757678909152,0.707,4508.9,4508.8,0.2073]
[1757678909349,0.707,4508.9,4508.8,0.7191]
[1757678909543,0.5065,4508.9,4508.8,0.7191]
[1757678909752,0.3012,4508.9,4508.8,0.7191]
[1757678910159,0.3012,4509.4,4508.8,1.1182]
[1757678910351,0.3012,4509.4,4508.8,0.7191]
[1757678910657,0.3012,4509.4,4508.7,0.23]
[1757678910658,0.707,4509.4,4509.3,0.7191]
[1757678911156,0.707,4509.4,4509.3,0.2034]
[1757678911552,0.707,4509.4,4508.7,0.3084]
[1757678911851,0.707,4509.4,4509.2,0.23]
[1757678912854,0.707,4509.4,4509.3,0.4107]
[1757678913160,3.509,4509.6,4509.4,0.3084]
[1757678913354,3.509,4509.6,4509.5,0.7191]
[1757678913659,3.7143,4509.6,4509.5,0.7191]
[1757678913848,3.2078,4509.6,4509.5,0.7191]
[1757678914052,0.4058,4509.9,4509.8,0.2034]
[1757678914251,0.707,4509.9,4509.8,0.6407]
[1757678914661,0.707,4509.9,4509.8,0.4334]
[1757678914852,0.707,4509.9,4509.8,0.6407]
[1757678915957,0.707,4509.9,4509.8,0.9491]
[1757678916457,0.5065,4509.9,4509.8,0.9491]
[1757678917057,0.707,4509.9,4509.8,0.6407]
[1757678917260,0.707,4509.9,4509.8,0.4334]
[1757678918158,0.707,4509.9,4509.8,0.6407]
[1757678918461,0.707,4509.9,4509.8,0.4107]
[1757678918660,0.707,4509.9,4509.8,0.7191]
[1757678918858,0.707,4509.9,4509.8,0.9481]
[1757678919061,0.707,4509.9,4509.8,0.6397]
[1757678919363,0.707,4509.9,4509.8,0.4324]
[1757678920762,0.707,4509.9,4509.8,0.2034]
[1757678921256,0.707,4509.9,4509.8,0.4107]
[1757678921963,0.707,4509.9,4509.8,0.2034]
[1757678922162,0.707,4509.9,4509.8,0.4324]
[1757678922369,0.707,4509.9,4509.8,0.229]
[1757678923162,0.707,4508.8,4508.7,0.2034]
[1757678923359,0.707,4508.8,4508.7,0.4107]
[1757678923552,0.707,4508.8,4508.7,0.6397]
[1757678924855,0.707,4508.8,4508.7,0.4324]
[1757678925162,0.707,4508.6,4508.5,31.95]
[1757678925363,0.707,4508.6,4508.5,32.179]
[1757678925557,0.707,4508.6,4508.5,31.95]
[1757678926068,0.707,4508.6,4508.5,32.179]
[1757678926466,0.4058,4508.1,4508.0,3.2078]
[1757678926669,0.707,4508.1,4508.0,3.6402]
[1757678927162,0.707,4508.1,4508.0,3.8475]
[1757678927357,0.707,4508.1,4508.0,4.1559]
[1757678927560,0.707,4508.1,4508.0,3.8475]
[1757678927762,0.707,4508.1,4508.0,3.6185]
[1757678927964,0.707,4508.1,4508.0,3.8475]
[1757678928460,0.5065,4508.1,4508.0,4.1559]
[1757678928661,0.5065,4508.1,4508.0,3.9269]
[1757678928865,0.707,4508.1,4508.0,3.8475]
[1757678929567,0.3012,4508.1,4508.0,4.1559]
[1757678929768,0.5305,4508.5,4508.4,0.2034]
[1757678930070,0.5305,4508.5,4508.4,0.6397]
[1757678930470,0.8317,4508.5,4508.4,0.6397]
[1757678930669,0.8317,4508.5,4508.4,0.9481]
[1757678931660,0.707,4508.5,4508.4,0.9481]
[1757678931863,3.7002,4509.0,4508.5,0.3084]
[1757678932063,0.5065,4508.5,4508.1,0.3084]
[1757678932267,0.3012,4508.5,4508.4,0.7191]
[1757678932564,0.8317,4508.5,4508.4,0.9481]
[1757678932759,3.399,4509.0,4508.4,0.9481]
[1757678932760,3.6043,4509.0,4508.9,0.4107]
[1757678933070,3.7383,4509.0,4508.8,0.229]
[1757678933266,4.0395,4509.0,4508.9,0.7191]
[1757678933858,4.0395,4509.0,4508.9,0.2034]
[1757678934772,4.0395,4509.0,4508.9,0.4324]
[1757678934974,0.8317,4509.0,4508.9,0.4324]
[1757678935168,0.8317,4509.0,4508.9,0.9481]
[1757678935562,0.5065,4509.0,4508.9,0.9481]
[1757678935768,0.3012,4509.0,4508.9,0.9481]
[1757678936072,0.3677,4509.2,4509.1,0.7191]
[1757678936372,0.573,4509.2,4509.1,0.7191]
[1757678936566,0.7735,4509.2,4509.1,0.4107]
[1757678936765,0.7735,4509.2,4509.1,0.229]
[1757678938075,0.8266,4509.0,4508.9,0.2043]
[1757678939170,3.3325,4509.5,4509.0,0.39909]
[1757678939369,3.2078,4509.5,4509.3,0.6948]
[1757678939673,4.0344,4509.5,4509.4,0.4048]
[1757678939973,0.8266,4509.5,4509.4,0.2043]
[1757678940174,0.8266,4509.5,4509.4,0.4333]
[1757678940870,0.8266,4509.5,4509.4,0.9238]
[1757678940871,0.505,4509.5,4509.4,0.9238]
[1757678941172,0.3733,4509.7,4509.5,0.29]
[1757678941377,0.3733,4509.7,4509.6,0.6948]
[1757678941674,0.5715,4509.7,4509.6,0.6948]
[1757678943377,0.505,4509.7,4509.6,0.6948]
[1757678943677,0.3068,4509.7,4509.6,0.6948]
[1757678944183,0.1246,4510.0,4509.7,0.39903]
[1757678944372,0.505,4509.9,4509.8,0.9238]
[1757678944566,0.1247,4510.5,4509.9,0.39901]
[1757678944770,0.8308,4510.5,4510.4,0.2043]
[1757678944976,0.8308,4510.5,4510.3,0.228]
[1757678945379,0.8308,4510.5,4510.4,0.2043]
[1757678945380,0.524,4510.5,4510.4,0.2043]
[1757678945566,0.8308,4510.5,4510.4,0.4048]
[1757678946071,0.3068,4510.4,4509.7,3.2078]
[1757678946273,0.7061,4509.9,4509.8,0.6328]
[1757678946577,0.7061,4509.9,4509.8,0.9228]
[1757678947977,0.3068,4509.9,4509.8,1.32182]
[1757678948176,0.3068,4510.4,4510.3,0.6948]
[1757678948382,0.5715,4510.7,4510.6,0.4048]
[1757678948583,0.7726,4510.7,4510.6,0.4048]
[1757678948878,0.7061,4510.7,4510.6,0.4048]
[1757678949284,0.7061,4510.7,4510.6,0.2043]
[1757678949480,0.1205,4510.5,4510.3,3.4358]
[1757678949686,0.5198,4510.5,4510.4,0.2043]
[1757678949980,3.2078,4511.1,4510.4,0.4048]
[1757678950177,0.3068,4510.9,4510.4,0.6948]
[1757678950486,0.505,4510.5,4510.4,0.6948]
[1757678951485,0.8266,4510.5,4510.4,0.4048]
[1757678952283,0.8266,4510.5,4510.4,0.4323]
[1757678953178,0.3068,4510.4,4509.7,0.29]
[1757678953483,0.505,4509.8,4509.7,1.09383]
[1757678953673,0.505,4509.8,4509.7,1.32183]
[1757678953877,0.3068,4509.8,4509.7,1.54357]
[1757678954786,0.1205,4510.5,4509.7,0.9228]
[1757678954982,0.7061,4510.4,4510.3,0.6948]
[1757678955174,0.7061,4510.4,4510.3,0.9228]
[1757678959390,0.505,4510.4,4510.3,0.9228]
[1757678959989,0.7061,4510.4,4510.3,0.6328]
[1757678961885,0.7061,4510.4,4510.3,0.9228]
[1757678965890,0.505,4510.4,4510.3,0.9228]
[1757678967488,0.7061,4510.4,4510.3,0.9228]
[1757678973495,0.7061,4510.4,4510.3,0.6948]
[1757678973688,0.7061,4510.4,4510.3,0.9218]
[1757678973883,0.7061,4510.4,4510.3,0.6318]
[1757678974190,0.6956,4510.4,4510.3,0.227]
[1757678974701,0.2963,4510.3,4510.2,3.2078]
[1757678974882,0.6953,4510.3,4510.2,3.6317]
[1757678975295,0.6953,4510.3,4510.2,4.1429]
[1757678976688,0.1205,4511.5,4510.8,0.3071]
[1757678976689,0.2963,4510.9,4510.8,0.3071]
[1757678976992,0.2963,4510.9,4510.8,0.9351]
[1757678977198,0.4951,4510.9,4510.8,0.9351]
[1757678978398,0.2963,4511.0,4510.9,0.7081]
[1757678978697,0.0665,4511.1,4510.9,0.401]
[1757678978893,0.0665,4511.1,4511.0,0.9351]
[1757678979092,0.3628,4511.1,4511.0,0.9351]
[1757678979795,0.0665,4511.1,4511.0,1.40422]
[1757678980298,0.5195,4512.0,4511.9,0.1969]
[1757678980495,0.8158,4512.0,4511.9,0.4239]
[1757678980698,1.38884492,4512.0,4511.9,0.227]
[1757678981794,0.8158,4512.0,4511.9,0.9351]
[1757678985088,0.1154,4512.5,4511.9,0.9351]
[1757678985089,0.2963,4512.4,4511.9,3.8358]
[1757678985289,0.2963,4512.6,4512.3,0.7081]
[1757678985490,0.4951,4512.7,4512.6,0.401]
[1757678985696,0.0664,4512.8,4512.6,0.79977]
[1757678985891,0.0664,4512.8,4512.7,0.9351]
[1757678987098,0.1988,4512.8,4512.7,0.9351]
[1757678987303,0.4951,4512.8,4512.7,0.9351]
[1757678988403,0.2963,4512.8,4512.7,0.9351]
[1757678988601,0.5144,4513.5,4513.4,0.1969]
[1757678988800,0.5144,4513.5,4513.4,0.4239]
[1757678989204,0.6105,4513.5,4513.4,0.9351]
[1757678989400,0.8107,4513.5,4513.4,0.9351]
[1757678989608,3.3232,4514.0,4513.5,0.3071]
[1757678989795,0.4951,4513.9,4513.8,0.7081]
[1757678989997,0.4951,4513.9,4513.8,0.9351]
[1757678990898,0.6953,4513.9,4513.8,0.1969]
[1757678991101,0.399,4513.7,4513.6,3.2078]
[1757678991300,0.6953,4513.7,4513.6,3.2078]
[1757678991497,0.6953,4513.7,4513.6,3.4348]
[1757678991902,0.6953,4513.7,4513.6,3.2078]
[1757678992106,0.6105,4513.5,4513.4,0.7081]
[1757678992309,0.6105,4513.5,4513.4,0.9351]
[1757678992505,0.8107,4513.5,4513.4,0.9351]
[1757678992706,0.8107,4513.5,4513.4,0.628]
[1757678994304,0.8107,4513.5,4513.4,0.9351]
[1757678994503,0.4951,4513.5,4513.4,0.9351]
[1757678999116,0.4951,4513.5,4513.4,1.3338]
[1757678999302,0.2963,4513.5,4513.4,1.3338]
[1757679000213,0.5031,4513.5,4513.4,1.3338]
[1757679000713,0.8318,4513.5,4513.4,1.3135]
[1757679001414,0.2963,4513.5,4513.4,1.3135]
[1757679002011,0.1154,4514.5,4514.1,0.2878]
[1757679002312,0.5329,4514.5,4514.4,0.3931]
[1757679002719,0.8511,4514.5,4514.4,0.3931]
[1757679004311,0.8511,4514.5,4514.4,0.6191]
[1757679004512,0.3182,4514.5,4514.4,4.1147]
[1757679004719,0.8511,4515.0,4514.9,0.1999]
[1757679004909,0.8511,4515.0,4514.9,0.4259]
[1757679005311,0.8511,4515.0,4514.9,0.6191]
[1757679006513,0.8511,4515.0,4514.9,0.9069]
[1757679006916,0.3182,4515.0,4514.9,0.9069]
[1757679007118,0.7357,4515.4,4515.3,0.6809]
[1757679007319,0.7357,4515.4,4515.3,0.226]
[1757679007817,0.8537,4515.0,4514.5,0.2878]
[1757679008019,0.8537,4515.0,4514.6,0.226]
[1757679008614,0.118,4515.0,4514.9,0.6809]
[1757679008814,0.8537,4515.0,4514.9,0.3931]
[1757679009420,0.8537,4515.0,4514.9,0.6191]
[1757679012924,1.44392721,4515.0,4514.9,0.6191]
[1757679013925,1.44392721,4515.0,4514.9,0.9069]
[1757679015128,1.44392721,4515.0,4514.9,0.1999]
[1757679015327,1.44392721,4515.0,4514.9,0.4259]
[1757679015528,1.44392721,4515.0,4514.9,0.226]
[1757679017027,1.44392721,4515.0,4514.9,0.4259]
[1757679017332,1.44392721,4515.0,4514.9,0.226]
[1757679018037,0.7357,4514.9,4514.8,0.39858]
[1757679018234,1.32592721,4514.9,4514.8,0.4259]
[1757679018436,1.32592721,4514.9,4514.8,0.82448]
[1757679019030,0.59022721,4514.9,4514.8,1.30548]
[1757679019238,0.525,4515.2,4515.1,0.6809]
[1757679019440,1.32718177,4515.2,4515.1,0.3931]
[1757679020337,1.32718177,4515.2,4515.1,1.07945]
[1757679021030,1.32718177,4515.2,4515.1,0.6809]
[1757679021238,1.32718177,4515.2,4515.1,0.3931]
[1757679021540,1.32718177,4515.2,4515.1,0.79165]
[1757679022231,1.32718177,4515.2,4515.1,1.07945]
[1757679023235,0.90968177,4515.2,4515.1,1.07945]
[1757679023438,1.11648177,4515.2,4515.1,1.07945]
[1757679023938,0.59148177,4515.2,4515.1,1.07945]
[1757679024835,0.643,4515.5,4515.4,1.07943]
[1757679025138,1.23230724,4515.5,4515.4,1.30543]
[1757679025735,0.643,4515.5,4515.4,1.30543]
[1757679026039,0.8537,4515.5,4515.4,1.30543]
[1757679026237,0.8537,4515.5,4515.4,1.01763]
[1757679027332,0.3182,4515.5,4515.4,1.01763]
[1757679027534,0.525,4515.5,4515.4,1.30543]
[1757679027733,0.8537,4515.5,4515.4,0.6191]
[1757679027938,0.8537,4515.5,4515.4,0.82443]
[1757679029136,0.8537,4515.5,4515.4,0.62453]
[1757679029342,0.8314,4515.0,4514.9,3.4139]
[1757679029640,0.8314,4515.0,4514.9,3.4338]
[1757679030043,0.8314,4515.0,4514.9,3.83237]
[1757679030643,0.8314,4515.0,4514.9,3.4338]
[1757679031039,0.8314,4515.0,4514.9,3.83237]
[1757679031744,0.8314,4515.0,4514.9,4.03847]
[1757679033134,0.8314,4515.0,4514.9,4.23797]
[1757679033741,0.5048,4515.4,4515.3,1.12063]
[1757679033937,0.58881165,4515.4,4515.3,1.34663]
[1757679034142,0.5859,4516.0,4515.9,0.2061]
[1757679034336,1.17480249,4516.0,4515.9,0.4321]
[1757679034539,1.10840249,4516.0,4515.9,0.4321]
[1757679034756,1.41880249,4516.0,4515.9,0.4321]
[1757679035341,1.41880249,4516.0,4515.9,0.9481]
[1757679035547,0.8299,4516.0,4515.9,0.9481]
[1757679035743,0.8299,4516.0,4515.9,1.34658]
[1757679035943,0.3104,4516.0,4515.9,1.34658]
[1757679037250,0.7119,4516.4,4516.3,0.80404]
[1757679037449,0.7119,4516.4,4516.3,4.23784]
[1757679038243,0.7119,4516.4,4516.3,4.55434]
[1757679038446,0.3104,4516.4,4516.3,4.55434]
[1757679039150,0.3104,4516.4,4516.3,4.1559]
[1757679039350,0.5048,4516.4,4516.3,4.1559]
[1757679041356,0.3104,4516.4,4516.3,4.1559]
[1757679042047,0.1195,4517.0,4516.3,3.7503]
[1757679042258,0.521,4517.0,4516.9,0.2061]
[1757679042447,0.521,4517.0,4516.9,0.226]
[1757679042643,0.8314,4517.0,4516.9,0.226]
[1757679044150,0.8314,4517.0,4516.9,0.4321]
[1757679045554,0.8314,4517.0,4516.9,0.9481]
[1757679045858,0.8314,4517.0,4516.9,0.6306]
[1757679046055,1.44174804,4517.0,4516.9,0.6306]
[1757679048864,1.44174804,4517.0,4516.9,0.9471]
[1757679049054,0.8314,4517.0,4516.9,0.9471]
[1757679050762,1.44139635,4517.0,4516.9,0.6306]
[1757679052161,0.8314,4517.0,4516.9,0.6306]
[1757679052763,0.8314,4517.0,4516.9,0.9471]
[1757679054061,0.5048,4517.0,4516.9,0.9471]
[1757679054256,0.3104,4517.0,4516.9,0.9471]
[1757679054560,0.6243,4517.0,4516.9,0.9471]
[1757679054761,0.8314,4517.0,4516.9,0.9471]
[1757679055754,0.8314,4517.0,4516.9,0.4311]
[1757679055957,0.8314,4517.0,4516.9,0.225]
[1757679056361,0.3104,4517.0,4516.9,0.9471]
[1757679056567,0.5048,4517.0,4516.9,0.9471]
[1757679056867,0.6243,4517.0,4516.9,0.9471]
[1757679057165,0.8314,4517.0,4516.9,0.9471]
[1757679057766,0.521,4517.0,4516.8,3.2078]
[1757679057974,0.521,4517.0,4516.9,0.225]
[1757679058271,1.44566028,4517.0,4516.9,0.225]
[1757679061159,1.44566028,4517.0,4516.1,3.2078]
[1757679061160,0.1219,4516.5,4516.1,3.2078]
[1757679061360,0.7145,4516.2,4516.1,3.2078]
[1757679061563,0.7145,4516.2,4516.1,3.6447]
[1757679061763,0.7145,4516.2,4516.1,3.4197]
[1757679061959,0.7145,4516.2,4516.1,3.4328]
[1757679062174,1.32836114,4516.2,4516.1,0.225]
[1757679062476,0.7145,4516.2,4516.1,0.225]
[1757679062964,1.32838327,4516.2,4516.1,0.225]
[1757679063471,0.7145,4515.6,4515.5,31.899]
[1757679063767,1.32857289,4515.6,4515.5,32.124]
[1757679063968,0.1219,4515.0,4514.9,3.4197]
[1757679064160,0.8364,4515.0,4514.9,3.6447]
[1757679065063,0.5076,4515.1,4515.0,0.7027]
[1757679065473,0.61393908,4515.1,4515.0,0.4101]
[1757679065673,0.8364,4515.5,4515.4,0.4101]
[1757679065973,1.45033699,4515.5,4515.4,0.9277]
[1757679067765,1.12153699,4515.5,4515.4,0.9277]
[1757679068174,0.8364,4515.5,4515.4,0.225]
[1757679068474,0.8364,4515.0,4514.9,3.4197]
[1757679068773,0.8364,4515.0,4514.9,3.6447]
[1757679070571,0.8364,4514.5,4514.4,3.4197]
[1757679070873,0.8364,4514.5,4514.4,3.8429]
[1757679071372,0.8364,4514.5,4514.4,3.6179]
[1757679071678,0.8364,4514.5,4514.4,4.1355]
[1757679071881,0.3115,4514.5,4514.4,4.1355]
[1757679072175,0.0664,4514.7,4514.6,0.4101]
[1757679072363,0.0664,4514.7,4514.6,0.7027]
[1757679072563,0.3779,4514.7,4514.6,0.7027]
[1757679072769,0.574,4514.7,4514.6,0.7027]
[1757679073577,0.3779,4514.7,4514.6,0.7027]
[1757679074078,0.3115,4514.7,4514.6,0.7027]
[1757679074374,0.1219,4515.0,4514.6,0.7027]
[1757679074580,0.3115,4515.0,4514.9,0.4101]
[1757679074879,0.3115,4515.0,4514.9,3.9105]
[1757679075079,0.5076,4515.0,4514.9,3.9105]
[1757679075678,0.6295,4515.0,4514.9,3.9105]
[1757679076479,0.8364,4515.0,4514.9,3.6179]
[1757679076675,0.8364,4515.0,4514.9,3.8429]
[1757679077073,0.1219,4514.5,4514.3,35.0998]
[1757679077276,0.7145,4514.4,4514.3,31.892]
[1757679077479,0.7145,4514.4,4514.3,32.117]
[1757679078187,0.7145,4514.4,4514.3,32.4096]
[1757679078388,0.7145,4514.4,4514.3,32.117]
[1757679078780,0.3779,4514.6,4514.5,0.7027]
[1757679078981,0.3779,4514.6,4514.5,0.9277]
[1757679080390,0.0664,4514.6,4514.5,0.9277]
[1757679081096,0.3115,4514.9,4514.5,0.9277]
[1757679081297,0.5076,4514.9,4514.8,0.4101]
[1757679081492,0.5076,4514.9,4514.8,0.9277]
[1757679082889,0.7145,4514.9,4514.8,0.9277]
[1757679083090,0.7145,4514.9,4514.8,0.6351]
[1757679084696,0.7145,4514.9,4514.8,0.9277]
[1757679085598,0.7145,4514.9,4514.8,0.6351]
[1757679089704,0.7145,4514.9,4514.8,0.9402]
[1757679090001,0.7145,4514.9,4514.8,0.6351]
[1757679090201,0.7166,4514.4,4514.3,31.892]
[1757679090503,0.7166,4514.4,4514.3,32.117]
[1757679093005,0.7166,4514.4,4514.3,32.4221]
[1757679093999,0.3804,4514.6,4514.5,0.3903]
[1757679094198,1.18997255,4514.6,4514.5,0.6954]
[1757679094999,1.12357255,4514.6,4514.5,0.6954]
[1757679095308,1.12357255,4514.6,4514.5,0.9204]
[1757679096008,0.314,4515.0,4514.9,0.6954]
[1757679096198,3.5218,4515.3,4515.0,0.3051]
[1757679096402,0.1219,4516.0,4515.2,3.2078]
[1757679096709,1.55251199,4515.9,4515.8,0.1974]
[1757679096902,1.55251199,4515.9,4515.8,0.4224]
[1757679097102,1.33105199,4515.9,4515.8,0.4224]
[1757679097805,1.33105199,4515.9,4515.8,0.225]
[1757679103015,1.33105199,4515.9,4515.3,0.3051]
[1757679103315,1.33105199,4515.8,4515.7,0.1974]
[1757679106012,0.123,4515.5,4515.4,0.4224]
[1757679106211,0.8396,4515.5,4515.4,0.6153]
[1757679106411,1.45405199,4515.5,4515.4,0.9204]
[1757679106613,0.8396,4515.5,4515.4,0.9204]
[1757679107011,0.314,4515.5,4515.4,0.9204]
[1757679108606,0.1219,4516.0,4515.4,0.9204]
[1757679108607,0.8385,4516.0,4515.9,0.3903]
[1757679108812,1.45156815,4516.0,4515.9,0.3903]
[1757679109412,1.13756815,4516.0,4515.3,0.3051]
[1757679109610,0.5245,4516.0,4515.9,0.1974]
[1757679109910,1.1375232,4516.0,4515.9,0.4224]
[1757679110105,1.4515232,4516.0,4515.9,0.4224]
[1757679112311,0.8385,4516.0,4515.9,0.4224]
[1757679112511,1.45131665,4516.0,4515.9,0.4224]
[1757679112708,1.45131665,4516.0,4515.9,0.6153]
[1757679112916,1.45131665,4516.0,4515.9,0.9204]
[1757679113116,0.8385,4516.0,4515.9,0.9204]